fUST/lending_fUST_20251208
["ID","MTS","AMOUNT","RATE_DAILY","PERIOD"]
[397442372,1765186248115,-500.0,8.219e-05,2]
[397442374,1765186248124,-648.15998302,8.219e-05,2]
[397442376,1765186248134,-559.47,8.219e-05,2]
[397442378,1765186248143,-523.43,8.219e-05,2]
[397442380,1765186248152,-500.0,8.219e-05,2]
[397442382,1765186248161,-501.13437323,8.219e-05,2]
[397442384,1765186248170,-500.0,8.219e-05,2]
[397442386,1765186248179,-500.0,8.219e-05,2]
[397442388,1765186248188,-500.0,8.219e-05,2]
[397442390,1765186248197,-500.0,8.219e-05,2]
[397442392,1765186248207,-500.0,8.219e-05,2]
[397442394,1765186248216,-760.18,8.219e-05,2]
[397442397,1765186248235,-500.0,8.219e-05,2]
[397442399,1765186248245,-500.0,8.219e-05,2]
[397442401,1765186248255,-500.20471899,8.219e-05,2]
[397442403,1765186248264,-500.0,8.219e-05,2]
[397442405,1765186248274,-500.0,8.219e-05,2]
[397442407,1765186248283,-500.0,8.219e-05,2]
[397442409,1765186248293,-500.0,8.219e-05,2]
[397442411,1765186248302,-500.0,8.219e-05,2]
[397442412,1765186248312,-500.0,8.219e-05,2]
[397442415,1765186248321,-500.0,8.219e-05,2]
[397442416,1765186248332,-500.0,8.219e-05,2]
[397442419,1765186248341,-500.0,8.219e-05,2]
[397442421,1765186248350,-500.0,8.219e-05,2]
[397442423,1765186248360,-705.74,8.219e-05,2]
[397442425,1765186248369,-500.0,8.219e-05,2]
[397442427,1765186248379,-500.0,8.219e-05,2]
[397442429,1765186248388,-1550.46,8.219e-05,2]
[397442431,1765186248397,-662.09,8.219e-05,2]
[397442433,1765186248406,-500.0,8.219e-05,2]
[397442435,1765186248416,-506.72862834,8.219e-05,2]
[397442437,1765186248425,-500.0,8.219e-05,2]
[397442438,1765186248436,-751.43,8.219e-05,2]
[397442442,1765186248459,-500.0,8.219e-05,2]
[397442445,1765186248479,-500.0,8.219e-05,2]
[397442448,1765186248495,-500.0,8.219e-05,2]
[397442451,1765186248517,-500.0,8.219e-05,2]
[397442454,1765186248533,-500.0,8.219e-05,2]
[397442456,1765186248549,-901.25,8.219e-05,2]
[397442459,1765186248567,-1088.87,8.219e-05,2]
[397442462,1765186248583,-500.0,8.219e-05,2]
[397442464,1765186248600,-500.0,8.219e-05,2]
[397442467,1765186248619,-500.0,8.219e-05,2]
[397442470,1765186248636,-500.0,8.219e-05,2]
[397442473,1765186248652,-1307.88,8.219e-05,2]
[397442475,1765186248663,-500.0,8.219e-05,2]
[397442477,1765186248678,-500.0,8.219e-05,2]
[397442480,1765186248693,-649.77,8.219e-05,2]
[397442482,1765186248712,-500.0,8.219e-05,2]
[397442485,1765186248729,-500.0,8.219e-05,2]
[397442488,1765186248746,-500.0,8.219e-05,2]
[397442490,1765186248758,-500.0,8.219e-05,2]
[397442492,1765186248769,-500.0,8.219e-05,2]
[397442495,1765186248786,-500.0,8.219e-05,2]
[397442498,1765186248800,-500.0,8.219e-05,2]
[397442500,1765186248812,-500.0,8.219e-05,2]
[397442503,1765186248829,-1431.42,8.219e-05,2]
[397442505,1765186248842,-744.86,8.219e-05,2]
[397442508,1765186248854,-500.0,8.219e-05,2]
[397442510,1765186248868,-500.0,8.219e-05,2]
[397442513,1765186248886,-500.0,8.219e-05,2]
[397442516,1765186248901,-4991.6,8.219e-05,2]
[397442518,1765186248917,-500.0,8.219e-05,2]
[397442521,1765186248934,-500.0,8.219e-05,2]
[397442524,1765186248950,-500.0,8.219e-05,2]
[397442526,1765186248966,-500.0,8.219e-05,2]
[397442530,1765186248988,-500.0,8.219e-05,2]
[397442533,1765186249006,-500.0,8.219e-05,2]
[397442535,1765186249022,-500.0,8.219e-05,2]
[397442538,1765186249038,-500.0,8.219e-05,2]
[397442540,1765186249052,-515.17344096,8.219e-05,2]
[397442543,1765186249068,-500.65015752,8.219e-05,2]
[397442545,1765186249082,-500.0,8.219e-05,2]
[397442547,1765186249097,-500.0,8.219e-05,2]
[397442549,1765186249111,-500.0,8.219e-05,2]
[397442552,1765186249124,-591.67827956,8.219e-05,2]
[397442554,1765186249137,-500.0,8.219e-05,2]
[397442557,1765186249151,-500.0,8.219e-05,2]
[397442559,1765186249164,-500.0,8.219e-05,2]
[397442561,1765186249178,-500.0,8.219e-05,2]
[397442563,1765186249191,-500.0,8.219e-05,2]
[397442566,1765186249204,-500.0,8.219e-05,2]
[397442568,1765186249218,-500.0,8.219e-05,2]
[397442571,1765186249230,-653.88,8.219e-05,2]
[397442573,1765186249243,-500.0,8.219e-05,2]
[397442575,1765186249256,-500.0,8.219e-05,2]
[397442577,1765186249269,-500.0,8.219e-05,2]
[397442579,1765186249281,-1356.18,8.219e-05,2]
[397442582,1765186249293,-2545.3,8.219e-05,2]
[397442584,1765186249309,-500.0,8.219e-05,2]
[397442587,1765186249323,-500.0,8.219e-05,2]
[397442589,1765186249337,-500.63636819,8.219e-05,2]
[397442591,1765186249351,-500.0,8.219e-05,2]
[397442594,1765186249363,-1111.74,8.219e-05,2]
[397442596,1765186249376,-500.0,8.219e-05,2]
[397442598,1765186249389,-615.74,8.219e-05,2]
[397442601,1765186249402,-500.0,8.219e-05,2]
[397442603,1765186249414,-500.0,8.219e-05,2]
[397442605,1765186249427,-881.77,8.219e-05,2]
[397442608,1765186249441,-822.6,8.219e-05,2]
[397442610,1765186249453,-500.0,8.219e-05,2]
[397442612,1765186249465,-773.72,8.219e-05,2]
[397442614,1765186249478,-500.0,8.219e-05,2]
[397442617,1765186249491,-1251.82,8.219e-05,2]
[397442619,1765186249504,-2627.18,8.219e-05,2]
[397442621,1765186249516,-500.0,8.219e-05,2]
[397442624,1765186249528,-833.27,8.219e-05,2]
[397442626,1765186249540,-640.37504478,8.219e-05,2]
[397442628,1765186249553,-1674.29,8.219e-05,2]
[397442630,1765186249565,-502.26246626,8.219e-05,2]
[397442633,1765186249578,-500.0,8.219e-05,2]
[397442635,1765186249591,-500.0,8.219e-05,2]
[397442637,1765186249604,-500.0,8.219e-05,2]
[397442639,1765186249617,-1265.6,8.219e-05,2]
[397442641,1765186249629,-500.0,8.219e-05,2]
[397442644,1765186249643,-684.49,8.219e-05,2]
[397442646,1765186249656,-500.0,8.219e-05,2]
[397442648,1765186249668,-500.0,8.219e-05,2]
[397442650,1765186249681,-628.45,8.219e-05,2]
[397442652,1765186249693,-500.0,8.219e-05,2]
[397442655,1765186249705,-500.0,8.219e-05,2]
[397442657,1765186249719,-500.0,8.219e-05,2]
[397442659,1765186249731,-500.0,8.219e-05,2]
[397442662,1765186249744,-500.0,8.219e-05,2]
[397442664,1765186249757,-500.0,8.219e-05,2]
[397442666,1765186249769,-500.0,8.219e-05,2]
[397442668,1765186249781,-1175.58,8.219e-05,2]
[397442671,1765186249794,-786.78,8.219e-05,2]
[397442673,1765186249806,-501.38810758,8.219e-05,2]
[397442675,1765186249818,-500.0,8.219e-05,2]
[397442677,1765186249831,-756.29,8.219e-05,2]
[397442679,1765186249844,-1092.66,8.219e-05,2]
[397442682,1765186249857,-1253.34,8.219e-05,2]
[397442684,1765186249870,-500.0,8.219e-05,2]
[397442686,1765186249882,-1475.14,8.219e-05,2]
[397442689,1765186249895,-500.0,8.219e-05,2]
[397442691,1765186249908,-680.15,8.219e-05,2]
[397442693,1765186249921,-500.0,8.219e-05,2]
[397442697,1765186249948,-236.70993966,8.219e-05,2]
[397442700,1765186249968,-885.38,8.219e-05,2]
[397442703,1765186249986,-873.01,8.219e-05,2]
[397442706,1765186250005,-500.0,8.219e-05,2]
[397442708,1765186250020,-500.0,8.219e-05,2]
[397442711,1765186250037,-500.0,8.219e-05,2]
[397442713,1765186250053,-1771.29,8.219e-05,2]
[397442716,1765186250068,-500.0,8.219e-05,2]
[397442719,1765186250082,-500.0,8.219e-05,2]
[397442721,1765186250098,-1145.76,8.219e-05,2]
[397442724,1765186250114,-500.0,8.219e-05,2]
[397442726,1765186250127,-500.0,8.219e-05,2]
[397442728,1765186250137,-500.0,8.219e-05,2]
[397442730,1765186250146,-500.0,8.219e-05,2]
[397442732,1765186250156,-500.0,8.219e-05,2]
[397442734,1765186250165,-1089.4,8.219e-05,2]
[397442736,1765186250175,-500.0,8.219e-05,2]
[397442738,1765186250184,-1491.27,8.219e-05,2]
[397442740,1765186250194,-500.0,8.219e-05,2]
[397442741,1765186250203,-500.0,8.219e-05,2]
[397442743,1765186250212,-500.0,8.219e-05,2]
[397442745,1765186250222,-500.0,8.219e-05,2]
[397442747,1765186250231,-500.0,8.219e-05,2]
[397442749,1765186250242,-500.0,8.219e-05,2]
[397442751,1765186250252,-500.0,8.219e-05,2]
[397442753,1765186250261,-500.0,8.219e-05,2]
[397442755,1765186250271,-500.0,8.219e-05,2]
[397442757,1765186250281,-1386.96,8.219e-05,2]
[397442777,1765186250291,-500.0,8.219e-05,2]
[397442790,1765186250672,-501.7677077,8.219e-05,2]
[397442794,1765186250703,-500.0,8.219e-05,2]
[397442796,1765186250713,-500.77523421,8.219e-05,2]
[397442798,1765186250722,-500.0,8.219e-05,2]
[397442799,1765186250730,-1174.41,8.219e-05,2]
[397442801,1765186250740,-500.0,8.219e-05,2]
[397442803,1765186250751,-500.0,8.219e-05,2]
[397442805,1765186250759,-500.0,8.219e-05,2]
[397442807,1765186250768,-500.0,8.219e-05,2]
[397442809,1765186250777,-2113.39,8.219e-05,2]
[397442811,1765186250786,-500.0,8.219e-05,2]
[397442813,1765186250795,-826.86,8.219e-05,2]
[397442815,1765186250804,-500.0,8.219e-05,2]
[397442817,1765186250813,-817.93,8.219e-05,2]
[397442819,1765186250822,-500.0,8.219e-05,2]
[397442821,1765186250831,-500.0,8.219e-05,2]
[397442823,1765186250840,-500.0,8.219e-05,2]
[397442825,1765186250848,-500.0,8.219e-05,2]
[397442827,1765186250858,-522.63,8.219e-05,2]
[397442829,1765186250867,-500.0,8.219e-05,2]
[397442831,1765186250876,-500.0,8.219e-05,2]
[397442833,1765186250885,-500.0,8.219e-05,2]
[397442835,1765186250894,-500.0,8.219e-05,2]
[397442837,1765186250903,-500.0,8.219e-05,2]
[397442839,1765186250912,-1084.51,8.219e-05,2]
[397442841,1765186250920,-500.0,8.219e-05,2]
[397442843,1765186250931,-500.0,8.219e-05,2]
[397442845,1765186250939,-500.0,8.219e-05,2]
[397442847,1765186250949,-500.0,8.219e-05,2]
[397442849,1765186250958,-890.43,8.219e-05,2]
[397442851,1765186250971,-500.0,8.219e-05,2]
[397442853,1765186250981,-634.88,8.219e-05,2]
[397442855,1765186250990,-600.59,8.219e-05,2]
[397442857,1765186250999,-725.88,8.219e-05,2]
[397442859,1765186251009,-500.0,8.219e-05,2]
[397442861,1765186251018,-500.0,8.219e-05,2]
[397442863,1765186251027,-500.0,8.219e-05,2]
[397442865,1765186251036,-686.64,8.219e-05,2]
[397442867,1765186251046,-500.0,8.219e-05,2]
[397442869,1765186251055,-500.0,8.219e-05,2]
[397442871,1765186251064,-500.0,8.219e-05,2]
[397442873,1765186251074,-561.01,8.219e-05,2]
[397442875,1765186251083,-979.96,8.219e-05,2]
[397442877,1765186251092,-500.0,8.219e-05,2]
[397442879,1765186251102,-500.0,8.219e-05,2]
[397442881,1765186251111,-500.0,8.219e-05,2]
[397442883,1765186251122,-902.62,8.219e-05,2]
[397442885,1765186251131,-500.0,8.219e-05,2]
[397442887,1765186251140,-500.0,8.219e-05,2]
[397442889,1765186251150,-500.0,8.219e-05,2]
[397442891,1765186251159,-500.0,8.219e-05,2]
[397442893,1765186251168,-500.0,8.219e-05,2]
[397442895,1765186251177,-500.0,8.219e-05,2]
[397442897,1765186251187,-500.0,8.219e-05,2]
[397442899,1765186251197,-500.0,8.219e-05,2]
[397442901,1765186251206,-500.0,8.219e-05,2]
[397442903,1765186251215,-817.98,8.219e-05,2]
[397442905,1765186251224,-713.16,8.219e-05,2]
[397442907,1765186251233,-938.15,8.219e-05,2]
[397442909,1765186251243,-991.3,8.219e-05,2]
[397442911,1765186251252,-1474.11,8.219e-05,2]
[397442913,1765186251261,-500.0,8.219e-05,2]
[397442915,1765186251270,-500.0,8.219e-05,2]
[397442917,1765186251279,-505.32123787,8.219e-05,2]
[397442919,1765186251289,-507.56651118,8.219e-05,2]
[397442921,1765186251297,-756.97,8.219e-05,2]
[397442923,1765186251308,-786.02,8.219e-05,2]
[397442925,1765186251318,-500.0,8.219e-05,2]
[397442928,1765186251327,-500.0,8.219e-05,2]
[397442930,1765186251336,-500.0,8.219e-05,2]
[397442932,1765186251345,-500.0,8.219e-05,2]
[397442933,1765186251355,-500.0,8.219e-05,2]
[397442936,1765186251364,-2395.44,8.219e-05,2]
[397442938,1765186251374,-500.0,8.219e-05,2]
[397442940,1765186251383,-500.0,8.219e-05,2]
[397442942,1765186251393,-500.0,8.219e-05,2]
[397442944,1765186251401,-500.0,8.219e-05,2]
[397442946,1765186251411,-899.54,8.219e-05,2]
[397442948,1765186251420,-500.0,8.219e-05,2]
[397442950,1765186251429,-500.0,8.219e-05,2]
[397442952,1765186251439,-500.01775472,8.219e-05,2]
[397442954,1765186251448,-500.0,8.219e-05,2]
[397442956,1765186251457,-500.0,8.219e-05,2]
[397442958,1765186251466,-500.0,8.219e-05,2]
[397442960,1765186251477,-1079.22,8.219e-05,2]
[397442962,1765186251486,-500.0,8.219e-05,2]
[397442964,1765186251495,-500.0,8.219e-05,2]
[397442966,1765186251505,-1393.2,8.219e-05,2]
[397442968,1765186251514,-500.0,8.219e-05,2]
[397442970,1765186251523,-968.78,8.219e-05,2]
[397442972,1765186251532,-500.0,8.219e-05,2]
[397442974,1765186251542,-548.86,8.219e-05,2]
[397442976,1765186251551,-500.0,8.219e-05,2]
[397442978,1765186251560,-500.0,8.219e-05,2]
[397442980,1765186251569,-500.0,8.219e-05,2]
[397442982,1765186251578,-500.0,8.219e-05,2]
[397442984,1765186251587,-500.0,8.219e-05,2]
[397442986,1765186251596,-500.0,8.219e-05,2]
[397442988,1765186251608,-517.75660765,8.219e-05,2]
[397442990,1765186251618,-500.0,8.219e-05,2]
[397442992,1765186251628,-500.0,8.219e-05,2]
[397442994,1765186251637,-500.0,8.219e-05,2]
[397442996,1765186251646,-500.46292073,8.219e-05,2]
[397442998,1765186251655,-878.68,8.219e-05,2]
[397442999,1765186251664,-169.730852,8.219e-05,2]
[397443001,1765186251674,-500.0,8.219e-05,2]
[397443003,1765186251683,-1454.46672494,8.219e-05,2]
[397443005,1765186251693,-500.0,8.219e-05,2]
[397443007,1765186251703,-500.0,8.219e-05,2]
[397443009,1765186251712,-658.52,8.219e-05,2]
[397443012,1765186251721,-500.0,8.219e-05,2]
[397443014,1765186251731,-500.0,8.219e-05,2]
[397443015,1765186251740,-506.9,8.219e-05,2]
[397443017,1765186251750,-500.0,8.219e-05,2]
[397443020,1765186251759,-500.0,8.219e-05,2]
[397443022,1765186251768,-638.92,8.219e-05,2]
[397443024,1765186251778,-2121.52,8.219e-05,2]
[397443026,1765186251787,-500.0,8.219e-05,2]
[397443028,1765186251796,-500.0,8.219e-05,2]
[397443030,1765186251806,-1411.25,8.219e-05,2]
[397443032,1765186251815,-500.0,8.219e-05,2]
[397443034,1765186251824,-676.94,8.219e-05,2]
[397443036,1765186251833,-589.3,8.219e-05,2]
[397443038,1765186251842,-500.0,8.219e-05,2]
[397443040,1765186251851,-2241.3851,8.219e-05,2]
[397443042,1765186251861,-500.0,8.219e-05,2]
[397443044,1765186251870,-500.0,8.219e-05,2]
[397443046,1765186251880,-579.35,8.219e-05,2]
[397443048,1765186251889,-500.0,8.219e-05,2]
[397443050,1765186251899,-1721.98,8.219e-05,2]
[397443052,1765186251908,-500.0,8.219e-05,2]
[397443054,1765186251917,-500.0,8.219e-05,2]
[397443056,1765186251927,-500.0,8.219e-05,2]
[397443058,1765186251936,-500.0,8.219e-05,2]
[397443060,1765186251946,-3731.92,8.219e-05,2]
[397443062,1765186251955,-2301.51,8.219e-05,2]
[397443064,1765186251965,-529.2,8.219e-05,2]
[397443067,1765186251974,-500.0,8.219e-05,2]
[397443069,1765186251995,-695.65,8.219e-05,2]
[397443071,1765186252005,-558.19,8.219e-05,2]
[397443073,1765186252015,-500.0,8.219e-05,2]
[397443075,1765186252024,-2610.07,8.219e-05,2]
[397443077,1765186252033,-544.95,8.219e-05,2]
[397443079,1765186252043,-1114.22,8.219e-05,2]
[397443081,1765186252053,-500.0,8.219e-05,2]
[397443083,1765186252062,-500.0,8.219e-05,2]
[397443085,1765186252072,-550.98,8.219e-05,2]
[397443088,1765186252082,-500.0,8.219e-05,2]
[397443090,1765186252092,-2044.76,8.219e-05,2]
[397443091,1765186252102,-500.0,8.219e-05,2]
[397443093,1765186252112,-500.0,8.219e-05,2]
[397443095,1765186252122,-500.0,8.219e-05,2]
[397443097,1765186252131,-855.2,8.219e-05,2]
[397443099,1765186252140,-500.0,8.219e-05,2]
[397443101,1765186252150,-500.0,8.219e-05,2]
[397443104,1765186252160,-1895.1,8.219e-05,2]
[397443106,1765186252170,-1520.18,8.219e-05,2]
[397443108,1765186252179,-1200.69,8.219e-05,2]
[397443110,1765186252190,-564.21468019,8.219e-05,2]
[397443112,1765186252199,-500.0,8.219e-05,2]
[397443114,1765186252209,-500.0,8.219e-05,2]
[397443116,1765186252218,-500.0,8.219e-05,2]
[397443118,1765186252228,-862.07,8.219e-05,2]
[397443120,1765186252238,-863.77,8.219e-05,2]
[397443122,1765186252247,-500.0,8.219e-05,2]
[397443124,1765186252257,-511.96,8.219e-05,2]
[397443126,1765186252266,-500.0,8.219e-05,2]
[397443128,1765186252275,-500.45876789,8.219e-05,2]
[397443130,1765186252285,-500.0,8.219e-05,2]
[397443132,1765186252294,-500.0,8.219e-05,2]
[397443134,1765186252304,-500.0,8.219e-05,2]
[397443136,1765186252313,-337.37590111,8.219e-05,2]
[397443189,1765186252801,-162.62409889,8.219e-05,2]
[397443191,1765186252811,-7601.56,8.219e-05,2]
[397443193,1765186252820,-1826.6,8.219e-05,2]
[397443195,1765186252830,-500.0,8.219e-05,2]
[397443197,1765186252839,-1206.06,8.219e-05,2]
[397443199,1765186252849,-500.28282944,8.219e-05,2]
[397443201,1765186252858,-993.47,8.219e-05,2]
[397443203,1765186252866,-500.0,8.219e-05,2]
[397443205,1765186252876,-638.26,8.219e-05,2]
[397443207,1765186252886,-544.9,8.219e-05,2]
[397443209,1765186252896,-639.68,8.219e-05,2]
[397443211,1765186252907,-3093.25,8.219e-05,2]
[397443213,1765186252916,-500.0,8.219e-05,2]
[397443215,1765186252926,-18170.96947561,8.219e-05,2]
[397443220,1765186252970,-58214.41750697,8.219e-05,2]
[397443222,1765186252982,-500.16552,8.219e-05,2]
[397443390,1765186273255,151.73,5.1e-05,2]
[397443560,1765186333157,151.73,5.1e-05,2]
[397443710,1765186392897,151.73,5.1e-05,2]
[397443724,1765186407648,173.09683291,0.000101,3]
[397443725,1765186452600,151.73,5.1e-05,2]
[397443726,1765186511665,151.73,5.1e-05,2]
[397443727,1765186571602,151.73,5.1e-05,2]
[397443728,1765186596567,1813.67250245,0.000101,3]
[397443729,1765186631735,151.73,5.1e-05,2]
[397443730,1765186690810,151.73,5.1e-05,2]
[397443731,1765186709163,662.47573017,0.000101,3]
[397443732,1765186711513,2647.25301777,0.000101,3]
[397443733,1765186751135,151.73,5.1e-05,2]
[397443734,1765186809648,151.73,5.1e-05,2]
[397443736,1765186870645,151.73,5.1e-05,2]
[397443737,1765186931119,22251.999999,0.0001,10]
[397443738,1765186931462,151.73,5.1e-05,2]
[397443739,1765186949877,171.807034,5.263e-05,120]
[397443741,1765186983099,1098.1676667,5.1e-05,2]
[397443742,1765186988927,151.73,5.1e-05,2]
[397443791,1765187017612,646.66628567,0.000101,3]
[397443793,1765187049521,151.73,5.1e-05,2]
[397443794,1765187084983,14416.8629965,4.447e-05,2]
[397443797,1765187107618,151.73,5.1e-05,2]
[397443798,1765187113343,162.53641484,5.1e-05,2]
[397443799,1765187168067,151.73,5.1e-05,2]
[397443800,1765187221041,2820.7505137,4.372e-05,2]
[397443801,1765187228608,151.73,5.1e-05,2]
[397443802,1765187229337,5000.0,5.1e-05,2]
[397443803,1765187289786,151.73,5.1e-05,2]
[397443804,1765187295082,4885.37497609,5.1e-05,2]
[397443805,1765187344161,250.0,0.00010099,3]
[397443806,1765187344428,250.0,9.999e-05,3]
[397443807,1765187344953,250.0,5.262e-05,3]
[397443808,1765187347676,151.73,5.1e-05,2]
[397443809,1765187407417,151.73,5.1e-05,2]
[397443824,1765187432287,-283.32353234,5.192e-05,2]
[397443825,1765187432341,-16.67646766,5.192e-05,2]
[397443826,1765187432351,-300.0,5.192e-05,2]
[397443827,1765187432577,-300.0,5.192e-05,2]
[397443828,1765187432595,-1200.0,5.192e-05,2]
[397443829,1765187432604,-961.85446,5.193e-05,2]
[397443830,1765187432615,-36.14554,5.193e-05,2]
[397443831,1765187432624,-500.0,5.193e-05,2]
[397443832,1765187432634,-208.20478785,5.193e-05,2]
[397443833,1765187432643,-500.0,5.193e-05,2]
[397443834,1765187432652,-500.0,5.193e-05,2]
[397443835,1765187432660,-500.0,5.193e-05,2]
[397443836,1765187432669,-500.0,5.193e-05,2]
[397443837,1765187432678,-313.97190107,5.193e-05,2]
[397443838,1765187432687,-500.0,5.193e-05,2]
[397443839,1765187432696,-500.0,5.193e-05,2]
[397443840,1765187432706,-500.0,5.193e-05,2]
[397443841,1765187432715,-348.5650647,5.193e-05,2]
[397443842,1765187432724,-500.0,5.193e-05,2]
[397443843,1765187432734,-500.0,5.193e-05,2]
[397443844,1765187432743,-500.0,5.193e-05,2]
[397443845,1765187432752,-500.0,5.193e-05,2]
[397443846,1765187432760,-500.0,5.193e-05,2]
[397443847,1765187432770,-500.0,5.193e-05,2]
[397443848,1765187432779,-500.0,5.193e-05,2]
[397443849,1765187432787,-393.35346626,5.193e-05,2]
[397443850,1765187432796,-500.0,5.193e-05,2]
[397443851,1765187432805,-500.0,5.193e-05,2]
[397443852,1765187432814,-500.0,5.193e-05,2]
[397443853,1765187432823,-500.0,5.193e-05,2]
[397443854,1765187432833,-500.0,5.193e-05,2]
[397443855,1765187432843,-430.12278054,5.193e-05,2]
[397443856,1765187432851,-265.46337046,5.193e-05,2]
[397443857,1765187432860,-500.0,5.193e-05,2]
[397443858,1765187432868,-500.0,5.193e-05,2]
[397443859,1765187432877,-500.0,5.193e-05,2]
[397443860,1765187432887,-500.0,5.193e-05,2]
[397443861,1765187432896,-500.0,5.193e-05,2]
[397443862,1765187432905,-500.0,5.193e-05,2]
[397443863,1765187432914,-500.0,5.193e-05,2]
[397443864,1765187432923,-500.0,5.193e-05,2]
[397443865,1765187432933,-500.0,5.193e-05,2]
[397443866,1765187432942,-500.0,5.193e-05,2]
[397443867,1765187432951,-500.0,5.193e-05,2]
[397443868,1765187432962,-500.0,5.193e-05,2]
[397443869,1765187432971,-500.0,5.193e-05,2]
[397443870,1765187432980,-500.0,5.193e-05,2]
[397443871,1765187432989,-500.0,5.193e-05,2]
[397443872,1765187432998,-500.0,5.193e-05,2]
[397443873,1765187433007,-623.12473322,5.193e-05,2]
[397443874,1765187433018,-500.0,5.193e-05,2]
[397443875,1765187433028,-500.0,5.193e-05,2]
[397443876,1765187433040,-500.0,5.193e-05,2]
[397443877,1765187433050,-500.0,5.193e-05,2]
[397443878,1765187433059,-500.0,5.193e-05,2]
[397443879,1765187433068,-500.0,5.193e-05,2]
[397443880,1765187433077,-500.0,5.193e-05,2]
[397443881,1765187433086,-500.0,5.193e-05,2]
[397443882,1765187433096,-500.0,5.193e-05,2]
[397443883,1765187433105,-500.0,5.193e-05,2]
[397443884,1765187433116,-500.0,5.193e-05,2]
[397443885,1765187433125,-500.0,5.193e-05,2]
[397443886,1765187433134,-500.0,5.193e-05,2]
[397443887,1765187433143,-500.0,5.193e-05,2]
[397443888,1765187433153,-383.55978862,5.193e-05,2]
[397443889,1765187433165,-116.44021138,5.193e-05,2]
[397443890,1765187433174,-500.0,5.193e-05,2]
[397443891,1765187433183,-500.0,5.193e-05,2]
[397443892,1765187433192,-500.0,5.193e-05,2]
[397443893,1765187433201,-500.0,5.193e-05,2]
[397443894,1765187433211,-500.0,5.193e-05,2]
[397443895,1765187433220,-500.0,5.193e-05,2]
[397443896,1765187433230,-500.0,5.193e-05,2]
[397443897,1765187433239,-500.0,5.193e-05,2]
[397443898,1765187433247,-500.0,5.193e-05,2]
[397443899,1765187433256,-500.0,5.193e-05,2]
[397443900,1765187433265,-500.0,5.193e-05,2]
[397443901,1765187433279,-500.0,5.193e-05,2]
[397443902,1765187433289,-500.0,5.193e-05,2]
[397443903,1765187433298,-500.0,5.193e-05,2]
[397443904,1765187433308,-500.0,5.193e-05,2]
[397443905,1765187433318,-500.0,5.193e-05,2]
[397443906,1765187433327,-500.0,5.193e-05,2]
[397443907,1765187433337,-500.0,5.193e-05,2]
[397443908,1765187433347,-500.0,5.193e-05,2]
[397443909,1765187433357,-500.0,5.193e-05,2]
[397443910,1765187433367,-500.0,5.193e-05,2]
[397443911,1765187433376,-500.0,5.193e-05,2]
[397443912,1765187433386,-500.0,5.193e-05,2]
[397443913,1765187433396,-500.0,5.193e-05,2]
[397443914,1765187433406,-500.0,5.193e-05,2]
[397443915,1765187433415,-500.0,5.193e-05,2]
[397443916,1765187433425,-500.0,5.193e-05,2]
[397443917,1765187433434,-500.0,5.193e-05,2]
[397443918,1765187433444,-500.0,5.193e-05,2]
[397443919,1765187433454,-500.0,5.193e-05,2]
[397443920,1765187433464,-500.0,5.193e-05,2]
[397443921,1765187433473,-500.0,5.193e-05,2]
[397443922,1765187433483,-500.0,5.193e-05,2]
[397443923,1765187433492,-500.0,5.193e-05,2]
[397443924,1765187433502,-500.0,5.193e-05,2]
[397443925,1765187433512,-500.0,5.193e-05,2]
[397443926,1765187433523,-500.0,5.193e-05,2]
[397443927,1765187433533,-500.0,5.193e-05,2]
[397443928,1765187433543,-500.0,5.193e-05,2]
[397443929,1765187433553,-500.0,5.193e-05,2]
[397443930,1765187433563,-559.41299885,5.193e-05,2]
[397443931,1765187433573,-500.0,5.193e-05,2]